[Event "32nd NATO Championship 2022"]
[Site "Tartu"]
[Date "2022.06.30"]
[Round "5.16"]
[White "Sauer, Marko"]
[Black "Pazeriene, Diana"]
[Result "0-1"]
[ECO "B19"]
[WhiteElo "2065"]
[BlackElo "1930"]
[Annotator "NA RC"]
[PlyCount "84"]
[EventDate "2022.06.27"]
[EventType "swiss"]
[EventCountry "EST"]
[SourceTitle "playchess.com"]
[Source "ChessBase"]
[SourceQuality "1"]
[TimeControl "5400+30"]

1. e4 {[%emt 0:00:04]} c6 {[%emt 0:00:05]} 2. d4 {[%emt 0:00:18]} d5 {[%emt 0:00:05]} 3. Nc3 {[%emt 0:00:40]} dxe4 {[%emt 0:00:37]} 4. Nxe4 {[%emt 0:00:08]} Bf5 {[%emt 0:01:51]} 5. Ng3 {[%emt 0:01:16]} Bg6 {[%emt 0:00:11]} 6. h4 {[%emt 0:01:52]} h6 {[%emt 0:00:24]} 7. h5 {[%emt 0:01:16]} Bh7 {[%emt 0:00:17]} 8. Nf3 {[%emt 0:00:34]} e6 {[%emt 0:05:54]} 9. Bd3 {[%emt 0:06:10]} Bxd3 {[%emt 0:00:40]} 10. Qxd3 {[%emt 0:00:07]} Nf6 {[%emt 0:00:52]} 11. Bd2 {[%emt 0:04:59]} Nbd7 {[%emt 0:01:38]} 12. c4 {[%emt 0:10:14]} (12. O-O-O $11) 12... Bd6 {[%emt 0:05:37]} 13. Ne4 {[%emt 0:06:58]} Nxe4 {[%emt 0:00:48]} 14. Qxe4 {[%emt 0:00:06]} Nf6 {[%emt 0:00:39]} 15. Qc2 {[%emt 0:02:10]} (15. Qe2 $11) 15... Qc7 {[%emt 0:05:54]} 16. Bc3 {[%emt 0:08:22]} b5 {[%emt 0:10:38]} 17. c5 $1 {[%emt 0:04:38]} Bf4 {[%emt 0:00:13]} 18. g3 {[%emt 0:06:51]} Bg5 {[%emt 0:00:06]} 19. a4 {[%emt 0:05:42]} a5 {[%emt 0:10:42]} 20. axb5 {[%emt 0:04:38]} cxb5 {[%emt 0:00:06]} 21. Ne5 {[%emt 0:02:02]} ({Of course not} 21. Nxg5 hxg5 22. Kf1 a4 $11) ({White should play} 21. Qd3 $16) 21... Nd5 {[%emt 0:08:02]} 22. Qe2 {[%emt 0:04:10]} Qb7 {[%emt 0:16:19]} 23. O-O {[%emt 0:02:39]} b4 {[%emt 0:01:44]} 24. Bd2 {[%emt 0:01:53]} Bxd2 {[%emt 0:01:51]} 25. Qxd2 {[%emt 0:00:06]} O-O {[%emt 0:03:23]} 26. Ra4 {[%emt 0:01:46]} Qc7 {[%emt 0:05:37]} 27. Rfa1 {[%emt 0:00:38]} Ne7 {[%emt 0:01:19]} 28. Nc4 {[%emt 0:04:06]} Nc6 {[%emt 0:00:53]} 29. d5 {[%emt 0:03:48]} exd5 {[%emt 0:02:18]} 30. Qxd5 {[%emt 0:00:14]} Rad8 {[%emt 0:07:58]} 31. Nd6 {[%emt 0:03:12]} Rfe8 {[%emt 0:00:14]} 32. Nxe8 {[%emt 0:06:48]} Rxe8 {[%emt 0:00:10]} 33. Qd6 {[%emt 0:00:35]} Qc8 {[%emt 0:00:20]} 34. Rc1 {[%emt 0:02:45]} (34. R4a2 $5 {[%cal Rb2b3]}) 34... Rd8 {[%emt 0:02:01]} 35. Qf4 {[%emt 0:01:06]} Nd4 {[%emt 0:00:17]} 36. Re1 {[%emt 0:01:09]} Qc6 {[%emt 0:00:10]} 37. Raa1 {[%emt 0:01:57]} Nf3+ {[%emt 0:00:08]} 38. Kf1 {[%emt 0:00:18]} Nxe1 {[%emt 0:00:27]} 39. Rxe1 {[%emt 0:00:19]} Qh1+ {[%emt 0:00:08]} 40. Ke2 {[%emt 0:00:39]} Re8+ {[%emt 0:00:04]} 41. Qe3 {[%emt 0:01:17]} Rxe3+ $19 {[%emt 0:00:06]} 42. fxe3 {[%emt 0:00:07]} Qxh5+ {[%emt 0:00:09]} 0-1

[Event "32nd NATO Championship 2022"]
[Site "Tartu"]
[Date "2022.06.30"]
[Round "5.29"]
[White "Simard, Francois"]
[Black "Wendler, Edward"]
[Result "0-1"]
[ECO "D36"]
[WhiteElo "1757"]
[BlackElo "1839"]
[Annotator "NA RC"]
[PlyCount "182"]
[EventDate "2022.06.27"]
[EventType "swiss"]
[EventCountry "EST"]
[SourceTitle "playchess.com"]
[Source "ChessBase"]
[SourceQuality "1"]
[TimeControl "5400+30"]

1. d4 {[%emt 0:00:05]} d5 {[%emt 0:00:06]} 2. c4 {[%emt 0:00:19]} e6 {[%emt 0:00:07]} 3. Nc3 {[%emt 0:00:33]} Nf6 {[%emt 0:00:21]} 4. cxd5 {[%emt 0:00:33]} exd5 {[%emt 0:00:09]} 5. Bg5 {[%emt 0:00:22]} Be7 {[%emt 0:00:14]} 6. e3 {[%emt 0:00:24]} c6 {[%emt 0:02:29]} 7. Nf3 {[%emt 0:01:10]} h6 {[%emt 0:09:31]} 8. Bf4 {[%emt 0:01:22]} O-O {[%emt 0:01:41]} 9. Bd3 {[%emt 0:00:51]} Re8 {[%emt 0:02:48]} 10. Qc2 {[%emt 0:01:42]} Nbd7 {[%emt 0:02:34]} 11. h3 {[%emt 0:03:55]} Nf8 {[%emt 0:09:03]} 12. O-O {[%emt 0:00:42]} Ne6 {[%emt 0:04:09]} 13. Be5 {[%emt 0:08:02]} Bd6 {[%emt 0:04:20]} 14. Bxd6 {[%emt 0:10:55]} Qxd6 {[%emt 0:00:10]} 15. Ne5 {[%emt 0:00:21]} Nf8 {[%emt 0:03:15]} (15... c5 $11) 16. Nb1 {[%emt 0:07:54]} ({White should play} 16. Rad1 $14) 16... Re7 {[%emt 0:07:43]} 17. Nd2 {[%emt 0:01:27]} c5 {[%emt 0:05:41]} 18. Nef3 {[%emt 0:00:23]} c4 {[%emt 0:01:00]} 19. Be2 {[%emt 0:06:41]} Rc7 {[%emt 0:11:23]} 20. Ne5 {[%emt 0:06:45]} (20. a4 $11) 20... N6d7 {[%emt 0:04:42]} 21. Ndf3 {[%emt 0:02:48]} f6 {[%emt 0:03:24]} 22. Ng6 {[%emt 0:03:31]} Nxg6 {[%emt 0:00:09]} 23. Qxg6 {[%emt 0:03:37]} Nf8 {[%emt 0:00:05]} 24. Qh5 {[%emt 0:00:25]} Bd7 {[%emt 0:04:34]} 25. Nh4 {[%emt 0:04:28] [#]} g5 $1 {[%emt 0:04:22]} 26. Nf3 {[%emt 0:04:01]} Be8 {[%emt 0:01:48]} 27. Qg4 {[%emt 0:00:42]} h5 {[%emt 0:01:02]} 28. Qg3 {[%emt 0:00:51]} Qxg3 {[%emt 0:00:10]} 29. fxg3 {[%emt 0:00:06]} Re7 {[%emt 0:00:31]} 30. Kf2 {[%emt 0:01:58]} Bg6 {[%emt 0:04:27]} 31. Rfe1 {[%emt 0:00:53]} Rae8 {[%emt 0:00:37]} 32. Bd1 {[%emt 0:00:45]} Ne6 {[%emt 0:03:03]} 33. Rc1 {[%emt 0:00:55]} Kg7 {[%emt 0:02:19]} 34. Bc2 {[%emt 0:03:27]} Bxc2 {[%emt 0:00:18]} 35. Rxc2 {[%emt 0:00:08]} Kg6 {[%emt 0:01:27]} 36. Rce2 {[%emt 0:01:10]} ({White should try} 36. b3 $15) 36... g4 {[%emt 0:00:28]} 37. Nd2 {[%emt 0:04:23]} b5 {[%emt 0:02:25]} 38. b4 {[%emt 0:03:19]} Ng5 {[%emt 0:03:00]} 39. h4 {[%emt 0:02:24]} Ne4+ {[%emt 0:00:14]} 40. Nxe4 {[%emt 0:00:42]} Rxe4 {[%emt 0:00:02]} 41. Rc1 {[%emt 0:01:37]} R8e6 {[%emt 0:00:24]} 42. Rc3 {[%emt 0:00:56] [#]} (42. a4 $142 bxa4 43. Ra1) 42... Ra6 $1 {[%emt 0:00:04]} 43. a3 {[%emt 0:00:45]} Ra4 {[%emt 0:01:34]} 44. Ra2 {[%emt 0:01:09]} Re6 {[%emt 0:00:29]} 45. Rc1 {[%emt 0:00:11]} Rea6 {[%emt 0:01:19]} 46. Rca1 {[%emt 0:00:10]} Rb6 {[%emt 0:00:38]} 47. Rb1 {[%emt 0:02:31]} Kf5 {[%emt 0:01:20]} 48. Ke2 {[%emt 0:00:40]} a5 {[%emt 0:00:38]} 49. bxa5 {[%emt 0:03:52]} Rxa5 {[%emt 0:00:09]} 50. Rf1+ {[%emt 0:00:43]} Ke6 {[%emt 0:00:53]} 51. Kd1 {[%emt 0:01:02]} b4 $2 {[%emt 0:00:42]} (51... Rba6 52. Raf2 Ke7) 52. Raf2 {[%emt 0:00:08]} Kf7 {[%emt 0:00:40]} 53. axb4 {[%emt 0:00:23]} Ra1+ {[%emt 0:00:10]} 54. Kc2 {[%emt 0:00:22]} Rxf1 {[%emt 0:01:00]} 55. Rxf1 {[%emt 0:00:07]} Ke6 {[%emt 0:00:09]} 56. Ra1 $2 {[%emt 0:02:10]} (56. Rb1 $11 {and White stays safe.}) 56... Rxb4 {[%emt 0:00:35]} 57. Ra6+ {[%emt 0:00:08]} Kf5 {[%emt 0:01:15]} 58. Rd6 {[%emt 0:00:23]} Rb5 {[%emt 0:00:22]} 59. Kc3 {[%emt 0:00:26]} Rb3+ {[%emt 0:00:02]} 60. Kd2 {[%emt 0:02:13]} Rb2+ {[%emt 0:00:18]} 61. Kc3 {[%emt 0:00:45]} Rxg2 {[%emt 0:00:03]} 62. Rxd5+ {[%emt 0:01:00]} Ke4 {[%emt 0:01:49]} 63. Rxh5 {[%emt 0:00:12]} Rxg3 {[%emt 0:00:03]} 64. Kxc4 {[%emt 0:02:04]} Rxe3 {[%emt 0:00:31]} 65. Rh8 {[%emt 0:01:14] [#]} Kf4 $2 {[%emt 0:01:25]} ({Black should try} 65... g3 $1 $19 66. Rg8 Kf3) 66. d5 {[%emt 0:02:17]} g3 {[%emt 0:00:23]} 67. d6 {[%emt 0:00:31]} (67. Rg8 $11 {should be considered.} Re2 68. d6) 67... g2 {[%emt 0:00:11]} 68. Rg8 {[%emt 0:00:06]} Rg3 {[%emt 0:00:02]} 69. Rxg3 $15 {[%emt 0:02:10]} Kxg3 {[%emt 0:00:02]} 70. d7 {[%emt 0:00:08]} g1=Q {[%emt 0:00:07]} 71. d8=Q {[%emt 0:00:10]} Qc1+ {[%emt 0:00:42]} 72. Kb5 {[%emt 0:01:24]} Qb1+ {[%emt 0:00:43]} ({Don't play} 72... Kxh4 $6 73. Qxf6+ Qg5+ 74. Qxg5+ Kxg5 $11) 73. Ka6 {[%emt 0:02:28]} Qf1+ {[%emt 0:00:18]} ({Don't play} 73... Kxh4 $6 74. Qxf6+ Kg4 75. Qd4+ Kf3 76. Qf6+ Kg4 77. Qd4+ Kf3 78. Qf6+ Kg4 $11) 74. Ka5 {[%emt 0:00:41]} Qf5+ {[%emt 0:00:05]} ({Of course not} 74... Kxh4 $6 75. Qh8+ Kg3 76. Qg7+ Kh3 77. Qh7+ Kg2 78. Qg7+ Kh3 79. Qh7+ Kg3 80. Qg7+ Kh4 81. Qh8+ Kg4 82. Qg7+ Kh3 $11) 75. Ka6 {[%emt 0:00:36]} Kxh4 {[%emt 0:00:04]} 76. Qh8+ {[%emt 0:00:43]} Kg4 {[%emt 0:00:04]} 77. Qg7+ {[%emt 0:00:09]} Kf4 {[%emt 0:00:12]} 78. Qc7+ {[%emt 0:00:24]} Qe5 {[%emt 0:00:04]} 79. Qc1+ {[%emt 0:00:39]} Kf5 {[%emt 0:00:16]} 80. Qc2+ {[%emt 0:00:14]} Kg5 {[%emt 0:00:22]} 81. Qg2+ {[%emt 0:00:20]} Kh6 {[%emt 0:00:50]} 82. Qh3+ {[%emt 0:00:18]} Kg6 {[%emt 0:00:12]} 83. Qg4+ {[%emt 0:01:19]} Kf7 {[%emt 0:00:02]} 84. Qd7+ {[%emt 0:00:16]} Qe7 {[%emt 0:00:02]} 85. Qxe7+ $2 {[%emt 0:00:26]} (85. Qd1 $19) 85... Kxe7 {[%emt 0:00:03]} 86. Kb5 {[%emt 0:00:10]} Kd6 {[%emt 0:00:27]} 87. Kc4 {[%emt 0:00:06]} Ke5 {[%emt 0:00:20]} 88. Kd3 {[%emt 0:00:05]} Kf4 {[%emt 0:00:23]} 89. Ke2 {[%emt 0:00:20] [#]} Kg3 $1 {[%emt 0:00:21]} 90. Ke1 {[%emt 0:00:56]} Kf3 {[%emt 0:00:22]} 91. Kf1 {[%emt 0:00:12]} f5 {[%emt 0:00:08]} 0-1

[Event "32nd NATO Championship 2022"]
[Site "Tartu"]
[Date "2022.06.30"]
[Round "5.31"]
[White "Papler, Peter"]
[Black "Heran-Boily, Samuel"]
[Result "0-1"]
[ECO "D02"]
[WhiteElo "1714"]
[BlackElo "1871"]
[Annotator "NA RC"]
[PlyCount "123"]
[EventDate "2022.06.27"]
[EventType "swiss"]
[EventCountry "EST"]
[SourceTitle "playchess.com"]
[Source "ChessBase"]
[SourceQuality "1"]
[TimeControl "5400+30"]

1. d4 {[%emt 0:03:12]} d5 {[%emt 0:00:04]} 2. Bf4 {[%emt 0:00:06]} Nf6 {[%emt 0:00:22]} 3. Nf3 {[%emt 0:00:12]} e6 {[%emt 0:00:29]} 4. e3 {[%emt 0:00:28]} Be7 {[%emt 0:01:59]} 5. h3 {[%emt 0:00:31]} b6 {[%emt 0:04:12]} 6. Be2 {[%emt 0:02:07]} Bb7 {[%emt 0:00:36]} 7. O-O {[%emt 0:00:39]} O-O {[%emt 0:00:07]} 8. Nbd2 {[%emt 0:00:54]} Nbd7 {[%emt 0:00:32]} 9. c3 {[%emt 0:01:26]} c5 {[%emt 0:01:01]} 10. Re1 {[%emt 0:01:11]} Ne4 {[%emt 0:03:12]} 11. Qc2 {[%emt 0:03:08]} Ndf6 {[%emt 0:10:19]} 12. Rad1 {[%emt 0:03:19]} c4 {[%emt 0:01:11]} 13. Nxe4 {[%emt 0:05:37]} Nxe4 {[%emt 0:00:22]} 14. Nd2 {[%emt 0:02:09]} f5 {[%emt 0:01:04]} 15. Nxe4 {[%emt 0:04:57]} fxe4 {[%emt 0:00:18]} 16. b3 {[%emt 0:00:58]} b5 {[%emt 0:01:49]} 17. Rb1 {[%emt 0:01:29]} Bc6 {[%emt 0:01:30]} 18. bxc4 {[%emt 0:01:46]} bxc4 {[%emt 0:00:16]} 19. Rf1 {[%emt 0:00:14]} Bd6 {[%emt 0:02:31]} 20. Bxd6 {[%emt 0:00:59]} Qxd6 {[%emt 0:00:09]} 21. Rb4 {[%emt 0:07:10]} Rf6 {[%emt 0:01:49]} 22. Rfb1 {[%emt 0:00:44]} Raf8 {[%emt 0:00:25]} 23. Bg4 {[%emt 0:02:05]} (23. Rf1 $1 $11 {was the only way to keep the balance.}) 23... g6 {[%emt 0:02:56]} ({Better is} 23... Rxf2 $17 24. Qxf2 Rxf2 25. Kxf2 Kf7) 24. R1b2 {[%emt 0:00:41]} (24. Rf1 $1 $11) 24... Kg7 $2 {[%emt 0:01:54]} (24... h5 $19 25. Bd1 Rxf2 26. Qxf2 Rxf2 27. Rxf2 e5) 25. Qb1 {[%emt 0:01:13]} h5 {[%emt 0:01:52]} 26. Bd1 {[%emt 0:00:33]} Kh6 {[%emt 0:00:43]} 27. Qc1 {[%emt 0:03:28]} ({White should try} 27. Ba4 $11) 27... Qc7 {[%emt 0:01:49]} 28. Qd2 $2 {[%emt 0:05:43]} (28. Rc2 $15) 28... Rf5 $2 {[%emt 0:04:27]} (28... Rxf2 $19 29. Qxf2 Rxf2 30. Rxf2 e5) 29. Qe1 {[%emt 0:04:33]} (29. f4 $11 {is more appropriate.}) 29... Rg5 {[%emt 0:05:01]} 30. h4 {[%emt 0:10:59]} Rgf5 {[%emt 0:01:13]} 31. g4 {[%emt 0:03:57]} (31. f4 $1 $11) 31... R5f7 {[%emt 0:05:07]} 32. g5+ {[%emt 0:01:17]} Kg7 {[%emt 0:00:11]} {Better is} 33. Kg2 $1 $11 {[%emt 0:00:28]} Rf5 {[%emt 0:04:14]} 34. Qg1 {[%emt 0:01:57]} R5f7 {[%emt 0:02:41]} 35. Qh1 {[%emt 0:04:47]} a5 {[%emt 0:01:02]} 36. Rb6 {[%emt 0:00:27]} Rxf2+ {[%emt 0:00:33]} 37. Rxf2 $11 {[%emt 0:00:56]} Rxf2+ {[%emt 0:00:16]} 38. Kxf2 {[%emt 0:00:03]} Qxb6 {[%emt 0:00:09]} 39. Qh2 {[%emt 0:02:49]} Be8 {[%emt 0:01:03]} 40. Qe5+ {[%emt 0:00:27]} Kg8 {[%emt 0:00:22]} 41. Qf6 {[%emt 0:03:55]} Qd6 {[%emt 0:00:39]} 42. Kg2 {[%emt 0:00:43]} Bf7 {[%emt 0:00:37]} 43. Qe5 {[%emt 0:04:02]} Qb6 {[%emt 0:02:57]} 44. Kg3 {[%emt 0:01:02]} Qb1 {[%emt 0:01:07]} 45. Qd6 {[%emt 0:04:18]} Qxd1 {[%emt 0:00:46]} 46. Qd8+ {[%emt 0:00:11]} Kh7 {[%emt 0:00:16]} 47. Kf4 {[%emt 0:02:23]} Qg4+ {[%emt 0:03:16]} 48. Ke5 {[%emt 0:00:18]} Qxh4 {[%emt 0:00:53]} 49. Kf6 {[%emt 0:01:46]} Qf2+ {[%emt 0:00:19]} 50. Ke7 {[%emt 0:00:19]} Bg8 {[%emt 0:01:54]} 51. Kd6 {[%emt 0:02:24]} Kg7 {[%emt 0:05:24]} 52. Qxa5 {[%emt 0:00:37]} Qg3+ {[%emt 0:01:01]} 53. Kc5 {[%emt 0:00:51]} Qxg5 {[%emt 0:00:58]} 54. Qc7+ {[%emt 0:00:21]} Bf7 {[%emt 0:02:59]} 55. a4 {[%emt 0:00:08]} Qxe3 {[%emt 0:01:08]} 56. a5 {[%emt 0:00:14]} Qxc3 {[%emt 0:00:24]} 57. Qb6 {[%emt 0:02:05]} e3 {[%emt 0:01:06]} 58. a6 {[%emt 0:00:07]} e2 {[%emt 0:01:11]} 59. a7 {[%emt 0:00:06]} Qa3+ {[%emt 0:00:31]} 60. Kc6 {[%emt 0:01:13]} e1=Q {[%emt 0:00:35]} 61. Kb7 {[%emt 0:00:35]} Qeb4 {[%emt 0:00:56]} 62. Qxb4 {[%emt 0:00:49]} 0-1

[Event "32nd NATO Championship 2022"]
[Site "Tartu"]
[Date "2022.06.30"]
[Round "5.33"]
[White "Giedraitis, Mingaudas"]
[Black "Ross, David C"]
[Result "1-0"]
[ECO "A45"]
[WhiteElo "1846"]
[BlackElo "1677"]
[Annotator "NA RC"]
[PlyCount "77"]
[EventDate "2022.06.27"]
[EventType "swiss"]
[EventCountry "EST"]
[SourceTitle "playchess.com"]
[Source "ChessBase"]
[SourceQuality "1"]
[TimeControl "5400+30"]

{[%evp 8,54,20,32767,32767,32767,29,-15,17,-11,23,13,32767,7,0,4,32767,8,14,32767,10,14,6,9,14,3,7,0,18,20,54,55,32767,93,32767,90,99,85,202,32767,32767,147,32767,32767,142,151,201,32767,192]} 1. d4 {[%emt 0:00:05]} Nf6 {[%emt 0:00:25]} 2. Bf4 {[%emt 0:00:06]} c5 {[%emt 0:02:02]} 3. e3 {[%emt 0:00:33]} Qb6 {[%emt 0:02:58]} 4. Na3 {[%emt 0:00:45]} cxd4 {[%emt 0:05:15]} 5. Qxd4 {[%emt 0:05:07]} Qxd4 {[%emt 0:10:21]} 6. exd4 {[%emt 0:00:11]} d6 {[%emt 0:02:03]} 7. Bd3 {[%emt 0:05:24]} (7. Nf3 $14 {is more appropriate.}) 7... g6 {[%emt 0:06:11]} 8. Bd2 {[%emt 0:01:49]} Bg7 {[%emt 0:01:22]} 9. Nb5 {[%emt 0:00:39]} Na6 {[%emt 0:01:47]} 10. Ne2 {[%emt 0:03:12]} Bd7 {[%emt 0:05:13]} 11. O-O {[%emt 0:02:42]} O-O {[%emt 0:06:00]} 12. Rfe1 {[%emt 0:08:12]} Nd5 {[%emt 0:09:18]} 13. c3 {[%emt 0:01:20]} Nac7 {[%emt 0:02:43]} 14. Nxc7 {[%emt 0:01:57]} Nxc7 {[%emt 0:01:21]} 15. Rad1 {[%emt 0:01:01]} Bc6 {[%emt 0:03:52]} 16. Bg5 {[%emt 0:02:42]} Rfe8 {[%emt 0:06:34]} 17. Ng3 {[%emt 0:04:03]} e5 {[%emt 0:06:20]} 18. dxe5 {[%emt 0:01:27]} dxe5 {[%emt 0:01:10]} 19. Ne4 {[%emt 0:01:24]} Bxe4 {[%emt 0:05:45]} 20. Bxe4 {[%emt 0:00:40]} ({Don't do} 20. Rxe4 Ne6 21. Be3 b6 $14) 20... Ne6 {[%emt 0:01:56]} 21. Be3 {[%emt 0:01:33]} ({Much worse is} 21. Bxb7 Nxg5 22. Bxa8 Rxa8 $15) 21... Re7 {[%emt 0:02:46]} 22. Rd6 {[%emt 0:03:20]} Rd8 {[%emt 0:06:24]} (22... Bf8 $16 {keeps fighting.}) 23. Rxd8+ {[%emt 0:02:21]} Nxd8 {[%emt 0:00:12]} 24. Bxa7 {[%emt 0:00:24]} Rd7 {[%emt 0:01:49]} 25. Be3 {[%emt 0:00:38]} f5 {[%emt 0:01:29]} 26. Bc2 {[%emt 0:00:14]} f4 {[%emt 0:02:45]} (26... Kf7 $16 27. Bb3+ Ke7) 27. Bc1 {[%emt 0:00:21]} Nc6 $18 {[%emt 0:00:57]} 28. f3 {[%emt 0:00:38]} Kf8 {[%emt 0:00:48]} 29. Kf1 {[%emt 0:00:25]} Ne7 {[%emt 0:01:48]} 30. Rd1 {[%emt 0:01:55]} Rc7 {[%emt 0:00:41]} 31. Rd8+ {[%emt 0:05:14]} Kf7 {[%emt 0:00:08]} 32. g4 {[%emt 0:01:34]} Nc6 {[%emt 0:01:36]} 33. Rd1 {[%emt 0:02:15]} Nd4 {[%emt 0:01:02]} 34. Be4 {[%emt 0:02:15]} Ne6 {[%emt 0:01:19]} 35. Bd5 {[%emt 0:01:32]} Ke7 {[%emt 0:00:08]} 36. Ke2 {[%emt 0:01:10]} Ng5 {[%emt 0:00:58]} 37. c4 {[%emt 0:00:45]} h5 {[%emt 0:00:58]} 38. gxh5 {[%emt 0:00:47]} gxh5 {[%emt 0:00:03]} 39. b3 {[%emt 0:01:56]} 1-0

[Event "32nd NATO Championship 2022"]
[Site "Tartu"]
[Date "2022.06.30"]
[Round "5.35"]
[White "Boudry, Rik"]
[Black "Ntalampiras, Spyros"]
[Result "0-1"]
[ECO "B21"]
[WhiteElo "1464"]
[BlackElo "1815"]
[Annotator "NA RC"]
[PlyCount "46"]
[EventDate "2022.06.27"]
[EventType "swiss"]
[EventCountry "EST"]
[SourceTitle "playchess.com"]
[Source "ChessBase"]
[SourceQuality "1"]
[TimeControl "5400+30"]

{[%evp 15,46,-26,32767,32767,56,22,32767,32767,-112,-106,-101,-377,-346,32767,-349,-306,32767,32767,32767,-575,32767,32767,-283,32767,-293,-297,-270,32767,32767,-403,32767,-814,-921]} 1. e4 {[%emt 0:00:14]} c5 {[%emt 0:00:03]} 2. Be2 {[%emt 0:00:11]} Nc6 {[%emt 0:00:06]} 3. f4 {[%emt 0:00:16]} g6 {[%emt 0:00:33]} 4. Nf3 {[%emt 0:00:21]} Bg7 {[%emt 0:00:12]} 5. O-O {[%emt 0:01:06]} d5 {[%emt 0:00:23]} 6. d3 {[%emt 0:00:50]} Nh6 {[%emt 0:01:06]} 7. c3 {[%emt 0:02:50]} O-O {[%emt 0:00:38]} 8. Nbd2 {[%emt 0:02:10]} (8. Na3 $142) 8... Ng4 {[%emt 0:08:25]} 9. Nb3 {[%emt 0:05:33]} dxe4 {[%emt 0:00:39]} 10. dxe4 {[%emt 0:01:57]} Qb6 {[%emt 0:00:20]} 11. c4 {[%emt 0:06:03]} Rd8 {[%emt 0:06:04]} 12. Qc2 {[%emt 0:00:56]} a5 {[%emt 0:07:10]} 13. h3 $2 {[%emt 0:06:53]} (13. a4 $17 {was forced.}) 13... a4 {[%emt 0:02:25]} 14. hxg4 {[%emt 0:00:47]} axb3 {[%emt 0:00:08]} 15. Qb1 {[%emt 0:00:05]} Bxg4 {[%emt 0:06:44]} 16. Rd1 {[%emt 0:03:04]} Rxd1+ {[%emt 0:05:27]} 17. Bxd1 {[%emt 0:00:09]} bxa2 {[%emt 0:03:20]} 18. Rxa2 {[%emt 0:01:15]} Rd8 {[%emt 0:00:15]} 19. Be3 {[%emt 0:01:22]} Bxf3 {[%emt 0:05:28]} 20. Bxf3 {[%emt 0:01:04]} Bd4 {[%emt 0:00:53]} 21. Bxd4 {[%emt 0:00:46]} Nxd4 {[%emt 0:00:09]} 22. Bd1 {[%emt 0:04:57]} (22. Ra3 {is a better defense.}) 22... Qb4 {[%emt 0:02:10]} 23. Kf2 {[%emt 0:04:46]} (23. Ra1 $142) 23... Qd2+ $19 {[%emt 0:01:39]} 0-1

[Event "32nd NATO Championship 2022"]
[Site "Tartu"]
[Date "2022.06.30"]
[Round "5.38"]
[White "Smit, Jan"]
[Black "Adolfssen, Rico"]
[Result "1/2-1/2"]
[ECO "D02"]
[WhiteElo "1741"]
[BlackElo "1837"]
[Annotator "NA RC"]
[PlyCount "28"]
[EventDate "2022.06.27"]
[EventType "swiss"]
[EventCountry "EST"]
[SourceTitle "playchess.com"]
[Source "ChessBase"]
[SourceQuality "1"]
[TimeControl "5400+30"]

{[%evp 17,28,10,16,-39,14,17,14,0,30,19,38,32767,93]} 1. Nf3 {[%emt 0:00:12]} d5 {[%emt 0:00:31]} 2. d4 {[%emt 0:00:04]} Bf5 {[%emt 0:00:58]} 3. Bg5 {[%emt 0:00:26]} h6 {[%emt 0:03:27]} 4. Bh4 {[%emt 0:00:17]} Nd7 {[%emt 0:04:26]} 5. e3 {[%emt 0:01:45]} Ngf6 {[%emt 0:02:12]} 6. Nbd2 {[%emt 0:00:48]} a6 {[%emt 0:05:03]} 7. a4 {[%emt 0:00:08]} g5 {[%emt 0:02:25]} 8. Bg3 {[%emt 0:00:11]} c5 {[%emt 0:04:34]} 9. Ne5 {[%emt 0:18:02]} Bg7 {[%emt 0:06:11]} 10. Be2 {[%emt 0:09:59]} ({Better is} 10. c3 $11) 10... O-O {[%emt 0:04:05]} (10... Qb6 $15 11. a5 Qxb2) 11. h4 {[%emt 0:14:58]} cxd4 {[%emt 0:08:58]} 12. exd4 {[%emt 0:05:51]} Rc8 {[%emt 0:03:13]} 13. c3 $1 {[%emt 0:01:08]} ({Not} 13. hxg5 Bxc2 14. Qc1 {[#]} Bh7 $1 $17) 13... Qb6 {[%emt 0:02:20]} 14. Qb3 {[%emt 0:10:55]} Qd8 $16 {[%emt 0:01:47]} (14... Qxb3 $11 {remains equal.} 15. Nxb3 Nxe5 16. Bxe5 Ne4) 1/2-1/2

[Event "32nd NATO Championship 2022"]
[Site "Tartu"]
[Date "2022.06.30"]
[Round "5.39"]
[White "Lambruschini, Alex"]
[Black "Steen, Kris"]
[Result "0-1"]
[ECO "B70"]
[WhiteElo "1807"]
[BlackElo "1735"]
[Annotator "NA RC"]
[PlyCount "56"]
[EventDate "2022.06.27"]
[EventType "swiss"]
[EventCountry "EST"]
[SourceTitle "playchess.com"]
[Source "ChessBase"]
[SourceQuality "1"]
[TimeControl "5400+30"]

1. e4 {[%emt 0:00:16]} c5 {[%emt 0:00:18]} 2. Nf3 {[%emt 0:00:27]} d6 {[%emt 0:00:08]} 3. d4 {[%emt 0:00:27]} cxd4 {[%emt 0:00:11]} 4. Nxd4 {[%emt 0:00:14]} Nc6 {[%emt 0:00:07]} 5. Nc3 {[%emt 0:01:27]} Nf6 {[%emt 0:00:20]} 6. Be2 {[%emt 0:01:22]} g6 {[%emt 0:01:41]} 7. O-O {[%emt 0:00:19]} Bg7 {[%emt 0:00:04]} 8. Kh1 {[%emt 0:01:08]} O-O {[%emt 0:00:15]} 9. g4 {[%emt 0:03:05]} (9. Nb3 $11 {keeps the balance.}) 9... Nxd4 {[%emt 0:05:39]} 10. Qxd4 {[%emt 0:00:11]} Bxg4 {[%emt 0:00:24]} 11. f3 {[%emt 0:02:10]} Bd7 {[%emt 0:01:59]} 12. Qg1 {[%emt 0:01:12]} Bc6 {[%emt 0:00:40]} 13. Be3 {[%emt 0:03:21]} a6 {[%emt 0:03:11]} 14. Bb6 {[%emt 0:08:12]} Qd7 {[%emt 0:05:51]} 15. a4 {[%emt 0:03:35]} Qe6 {[%emt 0:16:53]} 16. Ra3 {[%emt 0:01:58]} d5 {[%emt 0:06:14]} 17. e5 {[%emt 0:08:50]} (17. exd5 $142 Bxd5 18. Qe3) 17... Nd7 {[%emt 0:03:48]} ({Wrong is} 17... Qxe5 $2 18. Bd4 Qd6 19. Qe3 $19) 18. Bd4 {[%emt 0:03:38]} Bxe5 {[%emt 0:06:44]} 19. f4 {[%emt 0:01:10]} Bxd4 {[%emt 0:00:50]} 20. Qxd4 {[%emt 0:01:01]} Qf6 {[%emt 0:01:11]} 21. Qd3 $2 {[%emt 0:04:01]} (21. Qxf6 Nxf6 22. Bf3) 21... Nc5 {[%emt 0:01:18]} 22. Qh3 $19 {[%emt 0:08:58]} d4+ {[%emt 0:01:47]} 23. Bf3 {[%emt 0:02:30]} Bxf3+ {[%emt 0:01:03]} 24. Rxf3 {[%emt 0:01:36]} dxc3 {[%emt 0:00:07]} 25. Raxc3 {[%emt 0:02:30]} Ne6 {[%emt 0:09:16]} 26. f5 {[%emt 0:02:28]} Ng5 {[%emt 0:02:06]} 27. fxg6 {[%emt 0:01:37]} Nxh3 {[%emt 0:00:45]} 28. gxh7+ {[%emt 0:00:57]} Kh8 {[%emt 0:00:07]} 0-1